bitfinex/quotes_BTCUSD_20220405
["timestamp","ask_amount","ask_price","bid_price","bid_amount"]
[1649186849418,0.02571827,45882.0,45881.0,2.83675942]
[1649186849518,0.0382645,45889.0,45882.0,1.6]
[1649186849619,0.0382645,45889.0,45883.0,1.315582]
[1649186849718,0.0382645,45889.0,45888.0,0.09557734]
[1649186849866,0.0382645,45889.0,45888.0,0.71730234]
[1649186849969,0.0382645,45889.0,45888.0,0.76100234]
[1649186850070,0.0382645,45889.0,45888.0,1.67957401]
[1649186850366,0.0382645,45889.0,45888.0,1.6795584]
[1649186850467,0.0382645,45889.0,45888.0,1.79045632]
[1649186851518,0.00062186,45892.0,45891.0,0.054443]
[1649186851620,0.00062186,45892.0,45891.0,1.3565298]
[1649186851717,0.00062186,45892.0,45891.0,1.4002298]
[1649186851819,0.00062186,45892.0,45891.0,1.5002298]
[1649186852567,1.86e-06,45892.0,45891.0,1.5002298]
[1649186852669,0.002,45898.0,45892.0,0.054433]
[1649186852767,8.89e-06,45894.0,45893.0,0.997377]
[1649186852869,0.03102789,45901.0,45893.0,1.341077]
[1649186852968,0.03102789,45901.0,45897.0,0.906613]
[1649186853071,0.03102789,45901.0,45900.0,0.6648]
[1649186853170,0.03102789,45901.0,45900.0,1.22850252]
[1649186853268,0.00028376,45906.0,45902.0,0.6648]
[1649186853370,0.00028376,45906.0,45905.0,0.99740952]
[1649186853470,0.00028376,45906.0,45905.0,1.30829952]
[1649186853603,0.00028376,45906.0,45905.0,1.40829952]
[1649186853754,0.0031,45917.0,45907.0,0.773643]
[1649186853854,0.00056752,45909.0,45908.0,0.961142]
[1649186853955,0.00056752,45909.0,45908.0,1.04564383]
[1649186854107,0.00056752,45909.0,45908.0,1.14564383]
[1649186854205,0.00056752,45909.0,45908.0,0.67071455]
[1649186854306,0.00056752,45909.0,45908.0,0.99231455]
[1649186854505,0.00056752,45909.0,45908.0,0.98142455]
[1649186854605,0.00056752,45909.0,45908.0,1.21460183]
[1649186854907,0.26061778,45909.0,45908.0,1.22549183]
[1649186855110,0.00056752,45909.0,45908.0,1.22549183]
[1649186855457,0.00056752,45909.0,45908.0,1.27991883]
[1649186855659,0.00056752,45909.0,45908.0,0.61511883]
[1649186855759,0.00056752,45909.0,45908.0,0.47619]
[1649186855861,0.00056752,45909.0,45908.0,0.3653]
[1649186855959,0.00056752,45909.0,45908.0,0.46110317]
[1649186856060,0.00056752,45909.0,45908.0,0.19129965]
[1649186856159,0.00056752,45909.0,45908.0,0.0437]
[1649186856259,0.00056752,45909.0,45908.0,0.3653]
[1649186856461,0.00056752,45909.0,45908.0,0.37631748]
[1649186856561,0.00056752,45909.0,45908.0,0.67631724]
[1649186856764,0.00056752,45909.0,45908.0,1.05200724]
[1649186856864,0.00056752,45909.0,45908.0,1.31364252]
[1649186856960,0.00056752,45909.0,45908.0,0.43618996]
[1649186857065,0.00050752,45909.0,45908.0,0.68609003]
[1649186857611,0.00050752,45909.0,45908.0,0.88609003]
[1649186858110,0.00050752,45909.0,45908.0,0.87020003]
[1649186858209,0.00050752,45909.0,45908.0,0.57131724]
[1649186858809,0.00050752,45909.0,45908.0,0.37631724]
[1649186860263,0.00050752,45909.0,45908.0,0.42631724]
[1649186860363,0.00050752,45909.0,45908.0,0.96291322]
[1649186860567,0.00050752,45909.0,45908.0,0.66291322]
[1649186860768,0.00050752,45909.0,45908.0,1.32771322]
[1649186861156,0.00050752,45909.0,45908.0,1.37771322]
[1649186861458,0.00050752,45909.0,45908.0,1.47771322]
[1649186861555,0.00050752,45909.0,45908.0,1.48860322]
[1649186861754,0.00050752,45909.0,45908.0,1.47360322]
[1649186862156,0.00050752,45909.0,45908.0,1.5694007]
[1649186862408,0.00062752,45909.0,45908.0,1.5694007]
[1649186862508,0.00062752,45909.0,45908.0,1.46258598]
[1649186862611,0.00062752,45909.0,45908.0,1.56938442]
[1649186863010,0.00052405,45911.0,45908.0,1.62380942]
[1649186863110,0.00177909,45911.0,45910.0,0.67581545]
[1649186863210,0.00177909,45911.0,45910.0,1.47153945]
[1649186863312,0.0031,45917.0,45912.0,0.6648]
[1649186863413,0.0031,45917.0,45916.0,0.76058648]
[1649186863511,0.0031,45917.0,45916.0,1.08212048]
[1649186863613,0.0031,45917.0,45916.0,1.48212048]
[1649186863814,0.00209582,45920.0,45918.0,0.6648]
[1649186863915,0.00209582,45920.0,45918.0,1.08249309]
[1649186864015,0.00209582,45920.0,45918.0,1.80874465]
[1649186864215,0.00209582,45920.0,45919.0,2.2648]
[1649186864316,0.0449509,45932.0,45920.0,1.6]
[1649186864415,0.0449509,45932.0,45922.0,0.09574896]
[1649186864516,0.0449509,45932.0,45922.0,0.40663896]
[1649186864815,0.0449509,45932.0,45922.0,0.87182396]
[1649186865010,0.0449509,45932.0,45922.0,1.440875]
[1649186865115,0.0449509,45932.0,45922.0,1.45188613]
[1649186865209,0.0449509,45932.0,45924.0,0.6648]
[1649186865311,0.0449509,45932.0,45926.0,0.67581185]
[1649186865411,0.0449509,45932.0,45926.0,1.29726285]
[1649186865509,0.0449509,45932.0,45926.0,1.39726285]
[1649186865613,0.0449509,45932.0,45928.0,0.6648]
[1649186865712,0.0299509,45932.0,45930.0,0.6648]
[1649186865863,0.0149509,45932.0,45931.0,1.29722101]
[1649186865962,0.0149509,45932.0,45931.0,0.99722101]
[1649186866111,0.0149509,45932.0,45931.0,0.33242101]
[1649186866209,0.0149509,45932.0,45931.0,1.5865655]
[1649186866511,0.0144359,45932.0,45931.0,1.5865655]
[1649186866612,0.0144359,45932.0,45931.0,1.5974555]
[1649186866713,0.0144359,45932.0,45931.0,1.6974555]
[1649186866863,0.01,45934.0,45931.0,1.0326555]
[1649186866962,0.01,45934.0,45931.0,1.02164449]
[1649186867063,0.01,45934.0,45933.0,0.33240401]
[1649186867166,0.01,45934.0,45933.0,1.30809401]
[1649186867266,0.0011,45937.0,45934.0,1.6]
[1649186867365,0.00098383,45941.0,45936.0,1.61101101]
[1649186867470,0.00098383,45941.0,45940.0,0.01101101]
[1649186867566,0.00098383,45941.0,45940.0,0.33234218]
[1649186867674,0.012,45949.0,45941.0,1.6]
[1649186867768,0.012,45949.0,45946.0,0.0110061]
[1649186867871,0.007,45949.0,45947.0,0.321277]
[1649186867965,0.007,45949.0,45948.0,0.0110061]
[1649186868066,0.007,45949.0,45948.0,0.9970741]
[1649186868168,0.007,45949.0,45948.0,0.3322741]
[1649186868367,0.26032135,45949.0,45948.0,0.3322741]
[1649186868468,0.26032135,45949.0,45948.0,0.0957323]
[1649186868572,0.26032135,45949.0,45944.0,0.0437]
[1649186869325,0.23524728,45947.0,45945.0,0.321292]
[1649186870026,0.23524728,45947.0,45937.0,0.3]
[1649186870225,0.23524728,45947.0,45938.0,0.365043]
[1649186870321,0.23524728,45947.0,45938.0,0.321343]
[1649186870422,0.23524728,45947.0,45939.0,0.0437]
[1649186870522,0.23524728,45947.0,45940.0,0.321332]
[1649186870723,0.23524728,45947.0,45941.0,0.0437]
[1649186870823,0.23524728,45947.0,45942.0,0.321316]
[1649186871126,0.23524728,45947.0,45939.0,0.316338]
[1649186871976,0.26032135,45949.0,45941.0,0.316333]
[1649186872078,0.00055201,45945.0,45941.0,0.316333]
[1649186872316,0.00055201,45945.0,45939.0,0.316348]
[1649186872608,0.00055201,45945.0,45940.0,0.3]
[1649186872709,0.00055201,45945.0,45941.0,0.316334]
[1649186873063,0.007,45949.0,45941.0,0.316334]
[1649186873160,0.007,45949.0,45941.0,0.416334]
[1649186873259,0.007,45949.0,45941.0,1.092014]
[1649186873362,0.00055201,45945.0,45941.0,1.092014]
[1649186873460,0.00055201,45945.0,45941.0,0.427214]
[1649186873560,0.00055201,45945.0,45941.0,0.416334]
[1649186873663,0.00055201,45945.0,45942.0,0.25083689]
[1649186873761,0.00055201,45945.0,45943.0,0.316319]
[1649186873861,0.00055201,45945.0,45943.0,0.370711]
[1649186874061,0.00055201,45945.0,45944.0,0.0110085]
[1649186874164,0.007,45949.0,45944.0,0.3273195]
[1649186874264,0.007,45949.0,45945.0,0.054391]
[1649186874364,0.007,45949.0,45946.0,0.616294]
[1649186874464,0.007,45949.0,45947.0,0.6648]
[1649186874562,0.007,45949.0,45948.0,1.2920875]
[1649186874760,0.007,45949.0,45948.0,0.9920875]
[1649186876336,0.007,45949.0,45948.0,1.30296343]
[1649186876435,0.00296312,45952.0,45950.0,2.48192705]
[1649186876533,0.00296312,45952.0,45951.0,0.97568]
[1649186876634,0.00127698,45962.0,45953.0,0.6648]
[1649186876737,0.00127698,45962.0,45955.0,0.6648]
[1649186876836,0.00127698,45962.0,45956.0,0.98101]
[1649186876932,0.00127698,45962.0,45956.0,1.29189]
[1649186877031,0.00127698,45962.0,45956.0,0.99189]
[1649186877132,0.00127698,45962.0,45961.0,0.62525157]
[1649186877232,0.00127698,45962.0,45961.0,1.30105468]
[1649186877334,0.00127698,45962.0,45961.0,0.63625468]
[1649186878133,0.00127698,45962.0,45961.0,0.316172]
[1649186878235,0.00127698,45962.0,45948.0,0.00060408]
[1649186878384,0.00127698,45962.0,45950.0,0.6648]
[1649186878483,0.00127698,45962.0,45952.0,0.6648]
[1649186878585,0.00127698,45962.0,45955.0,0.03575735]
[1649186878735,0.00127698,45962.0,45960.0,0.01100299]
[1649186878834,0.00127698,45962.0,45961.0,0.32717499]
[1649186879233,0.00127698,45962.0,45961.0,0.33805499]
[1649186880212,0.00127698,45962.0,45961.0,0.32717499]
[1649186880419,0.00127698,45962.0,45954.0,0.0437]
[1649186880520,0.00127698,45962.0,45951.0,0.316243]
[1649186880614,0.00127698,45962.0,45951.0,0.327123]
[1649186880913,0.00127698,45962.0,45952.0,0.9648]
[1649186881017,0.00127698,45962.0,45957.0,0.29604381]
[1649186881115,0.00127698,45962.0,45958.0,0.316195]
[1649186881716,0.00183074,45962.0,45958.0,0.316195]
[1649186881918,0.00183074,45962.0,45958.0,0.370565]
[1649186882517,0.00156881,45962.0,45958.0,0.370565]
[1649186882616,0.00101505,45962.0,45958.0,0.370565]
[1649186882867,0.00156881,45962.0,45958.0,0.370565]
[1649186883175,0.0022147,45969.0,45959.0,0.3]
[1649186883271,0.0022147,45969.0,45959.0,0.31088]
[1649186883372,0.0011,45973.0,45962.0,0.31616]
[1649186883473,0.0011,45973.0,45963.0,0.24483785]
[1649186883576,0.0011,45973.0,45964.0,1.17191254]
[1649186883672,0.004,45978.0,45966.0,0.05]
[1649186883775,0.004,45978.0,45967.0,0.326998]
[1649186883875,0.004,45978.0,45967.0,0.370698]
[1649186884074,0.004,45978.0,45967.0,0.316118]
[1649186884173,0.22907118,45970.0,45967.0,0.316118]
[1649186884273,0.22907118,45970.0,45966.0,0.05]
[1649186884372,0.22907118,45970.0,45967.0,0.316122]
[1649186884474,0.22907118,45970.0,45966.0,0.05]
[1649186884573,0.22907118,45970.0,45967.0,0.166128]
[1649186884673,0.22907118,45970.0,45966.0,0.05]
[1649186884773,0.22907118,45970.0,45967.0,0.166128]
[1649186885276,0.23710502,45971.0,45966.0,0.00047958]
[1649186885376,0.00047952,45971.0,45967.0,0.166128]
[1649186886324,0.004,45977.0,45967.0,0.166128]
[1649186886426,0.29850329,45972.0,45967.0,0.166128]
[1649186886526,0.00047953,45971.0,45967.0,0.16660757]
[1649186886628,0.00047953,45971.0,45967.0,0.00047957]
[1649186887562,0.004,45977.0,45956.0,0.16617]
[1649186887664,0.004,45977.0,45965.0,0.05]
[1649186887768,0.004,45977.0,45967.0,0.66527957]
[1649186887769,0.00047953,45971.0,45967.0,0.66527957]
[1649186887864,0.00047953,45971.0,45969.0,0.6648]
[1649186887966,0.00047953,45971.0,45970.0,0.31099701]
[1649186888062,0.004,45977.0,45972.0,6e-05]
[1649186888168,0.004,45977.0,45972.0,0.66486]
[1649186888264,0.004,45977.0,45974.0,0.6648]
[1649186888362,0.004,45977.0,45976.0,0.01099749]
[1649186888564,0.004,45977.0,45976.0,0.18796149]
[1649186889566,0.002,45977.0,45976.0,1.15276149]
[1649186889765,0.002,45977.0,45976.0,1.241764]
[1649186889964,0.0002612,45981.0,45977.0,1.6]
[1649186890064,0.0002612,45981.0,45978.0,0.885206]
[1649186890165,0.002,45992.0,45982.0,0.6648]
[1649186890266,0.002,45992.0,45983.0,0.31087]
[1649186890367,0.002,45992.0,45984.0,0.66325]
[1649186890466,0.0001,45990.0,45985.0,0.166039]
[1649186890563,0.0001,45990.0,45987.0,0.16603]
[1649186890669,0.0001,45990.0,45987.0,0.82378]
[1649186890766,0.01764037,45999.0,45988.0,1.6]
[1649186890871,0.01764037,45999.0,45988.0,0.171394]
[1649186890969,0.46341439,45998.0,45988.0,0.160524]
[1649186891096,0.46341439,45998.0,45988.0,0.16001]
[1649186891192,0.2,45996.0,45985.0,0.05]
[1649186891393,0.2,45996.0,45986.0,0.160018]
[1649186891492,0.28614181,45998.0,45986.0,0.160018]
[1649186891595,0.28614181,45998.0,45985.0,0.05]
[1649186891842,0.30108098,45992.0,45986.0,0.160019]
[1649186892042,0.28614181,45998.0,45989.0,0.26243262]
[1649186892144,0.28614181,45998.0,45991.0,0.054334]
[1649186892244,0.28614181,45998.0,45992.0,0.159994]
[1649186892543,0.01764037,45999.0,45992.0,0.159994]
[1649186892643,0.00055364,45996.0,45992.0,0.159994]
[1649186893147,0.31677453,45993.0,45992.0,0.159994]
[1649186895921,0.55777777,45993.0,45992.0,0.159994]
[1649186896119,0.31677453,45993.0,45992.0,0.159994]
[1649186896524,0.00024211,45995.0,45992.0,0.159994]
[1649186896624,0.00024211,45995.0,45992.0,0.459994]
[1649186896723,0.00024211,45995.0,45992.0,0.159994]
[1649186896826,0.00024211,45995.0,45993.0,0.108656]
[1649186896924,0.00024211,45995.0,45994.0,0.159987]
[1649186897074,0.00024211,45995.0,45994.0,0.42841292]
[1649186897175,0.01764037,45999.0,45994.0,0.42841292]
[1649186897476,0.0005541,45997.0,45994.0,1.43691292]
[1649186897580,0.0005541,45997.0,45995.0,0.82181558]
[1649186897677,0.01087,46014.0,45998.0,0.6648]
[1649186897783,0.01087,46014.0,46000.0,0.6648]
[1649186897878,9.0,46018.0,46001.0,0.170822]
[1649186897978,9.0,46018.0,46003.0,0.159943]
[1649186898080,9.0,46018.0,45999.0,1.236352]
[1649186898081,0.36301333,46015.0,46005.0,0.159934]
[1649186898177,0.36301333,46015.0,46005.0,0.17092838]
[1649186898278,0.28035993,46006.0,46005.0,0.17092838]
[1649186898384,0.28035993,46006.0,46005.0,0.30553365]
[1649186898567,0.28035993,46006.0,46005.0,0.159934]
[1649186898823,0.25226414,46006.0,46005.0,0.159934]
[1649186899122,0.24726414,46006.0,46005.0,0.159934]
[1649186899772,0.24726414,46006.0,46005.0,0.17095179]
[1649186899872,0.55409999,46006.0,46005.0,0.159934]
[1649186900277,0.24726414,46006.0,46005.0,0.159934]
[1649186900431,0.24726414,46006.0,45995.0,0.06087]
[1649186900432,0.54726414,46006.0,45995.0,0.06087]
[1649186900626,0.54726414,46006.0,45995.0,0.05]
[1649186900726,0.30161107,46006.0,45995.0,0.05]
[1649186900827,0.3,46005.0,45995.0,0.05]
[1649186900934,0.30161107,46006.0,45995.0,0.05]
[1649186901080,0.19585082,45998.0,45990.0,0.01087]
[1649186901228,0.19585082,45998.0,45991.0,0.159991]
[1649186901229,0.3,45997.0,45991.0,0.159991]
[1649186901329,0.25666444,45997.0,45996.0,0.003576]
[1649186901431,0.19585082,45998.0,45996.0,0.003576]
[1649186901530,0.29199782,45997.0,45996.0,0.003576]
[1649186901933,0.59199782,45997.0,45996.0,0.003576]
[1649186902035,1.16817482,45997.0,45996.0,0.003576]
[1649186902132,1.10022984,45997.0,45996.0,0.003576]
[1649186902310,1.42183684,45997.0,45996.0,0.003576]
[1649186902364,1.10022984,45997.0,45996.0,0.003576]
[1649186902466,1.22769483,45997.0,45996.0,0.003576]
[1649186902867,1.27769483,45997.0,45996.0,7.6e-05]
[1649186902967,1.33205783,45997.0,45996.0,7.6e-05]
[1649186903072,1.33205783,45997.0,45975.0,0.01088]
[1649186903172,0.05436496,45991.0,45975.0,0.01088]
[1649186903271,0.05436496,45991.0,45976.0,0.160051]
[1649186903372,0.0437,45992.0,45976.0,0.160051]
[1649186903475,0.0437,45992.0,45975.0,0.01088]
[1649186903572,0.0437,45992.0,45976.0,0.160064]
[1649186903672,0.01087,45991.0,45974.0,0.05]
[1649186903821,0.01087,45991.0,45975.0,0.160068]
[1649186903924,0.0437,45992.0,45978.0,0.054352]
[1649186904021,0.24679503,45990.0,45983.0,0.27570612]
[1649186904124,0.28818068,45985.0,45983.0,0.27570612]
[1649186904221,0.28818068,45985.0,45984.0,0.17103236]
[1649186904720,0.28818068,45985.0,45984.0,0.16107551]
[1649186904820,0.28818068,45985.0,45984.0,0.00104351]
[1649186904821,0.60978768,45985.0,45984.0,0.00104351]
[1649186904923,0.28818068,45985.0,45984.0,0.00104351]
[1649186905426,0.58715219,45985.0,45984.0,0.00104351]
[1649186905523,0.77554487,45985.0,45984.0,0.00104351]
[1649186905985,0.81924487,45985.0,45984.0,0.00104351]
[1649186907268,0.81924487,45985.0,45984.0,4.351e-05]
[1649186907668,1.11924487,45985.0,45982.0,0.00051477]
[1649186907770,0.332477,45984.0,45982.0,0.00051477]
[1649186907873,0.3,45983.0,45982.0,0.00051477]
[1649186907973,0.3,45983.0,45965.0,0.01088]
[1649186907974,0.3437,45983.0,45965.0,0.01088]
[1649186908169,0.18769811,45973.0,45965.0,0.01088]
[1649186908371,0.70402029,45973.0,45967.0,0.21749336]
[1649186908523,0.70402029,45973.0,45965.0,0.01088]
[1649186908621,0.70402029,45973.0,45956.0,0.01088]
[1649186909023,0.51632218,45973.0,45956.0,0.01088]
[1649186909120,0.51632218,45973.0,45954.0,0.01088]
[1649186909473,0.0437,45977.0,45970.0,0.00051746]
[1649186909575,0.0437,45977.0,45971.0,0.160093]
[1649186910527,0.0437,45977.0,45976.0,0.25020255]
[1649186910624,0.0437,45977.0,45976.0,0.41027555]
[1649186910725,0.0437,45984.0,45976.0,0.41027555]
[1649186910823,0.15750559,45986.0,45977.0,0.214419]
[1649186910924,0.0437,45984.0,45977.0,0.214419]
[1649186911326,0.0437,45990.0,45977.0,0.214419]
[1649186911426,0.01087,45991.0,45977.0,0.054354]
[1649186911526,0.01087,45993.0,45978.0,0.054354]
[1649186911627,0.23611648,45991.0,45985.0,0.28589847]
[1649186911730,0.46395162,45998.0,45986.0,0.170893]
[1649186911731,0.1,45998.0,45986.0,0.170893]
[1649186911976,0.1739805,45997.0,45986.0,0.170893]
[1649186912126,0.00024167,46001.0,45987.0,0.05]
[1649186912226,0.00024167,46001.0,45988.0,0.170879]
[1649186912674,0.24426409,45995.0,45988.0,0.170879]
[1649186912777,0.25264713,45992.0,45988.0,0.170879]
[1649186913073,0.25264713,45992.0,45989.0,0.00055595]
[1649186913175,0.25264713,45992.0,45990.0,0.160006]
[1649186913374,0.00055581,46001.0,45992.0,0.159996]
[1649186913476,0.00055581,46001.0,45993.0,0.01087]
[1649186913592,0.00055581,46001.0,45994.0,0.203684]
[1649186913728,0.00055581,46001.0,45995.0,0.119519]
[1649186913826,0.00055581,46001.0,45996.0,0.159975]
[1649186913978,0.00055581,46001.0,45997.0,0.01087]
[1649186914079,0.00055581,46001.0,45998.0,0.824767]
[1649186914177,0.00055581,46001.0,46000.0,0.09558464]
[1649186914277,0.002,46007.0,46000.0,0.10645464]
[1649186914377,0.002,46007.0,46001.0,0.31075048]
[1649186914477,0.002,46007.0,46002.0,0.26652588]
[1649186914578,0.002,46007.0,46001.0,0.25791244]
[1649186914680,0.002,46007.0,46002.0,0.67567]
[1649186914779,0.002,46007.0,46006.0,0.03802277]
[1649186915328,0.002,46007.0,46006.0,0.04889277]
[1649186915832,0.002,46007.0,46006.0,0.34889277]
[1649186915929,0.002,46007.0,46006.0,1.01369277]
[1649186916330,0.002,46007.0,46006.0,0.34889277]
[1649186916533,0.002,46007.0,46006.0,0.04889277]
[1649186917568,0.002,46007.0,46006.0,0.34889277]
[1649186918468,0.0105558,46009.0,46006.0,1.01369277]
[1649186918568,0.0011,46013.0,46007.0,2.27567]
[1649186918671,0.0011,46013.0,46009.0,0.6648]
[1649186918767,0.0011,46013.0,46012.0,0.01098674]
[1649186918870,0.0011,46013.0,46012.0,0.19563952]
[1649186918969,0.0031,46021.0,46012.0,0.23933952]
[1649186919070,0.0031,46021.0,46017.0,0.01099128]
[1649186919170,0.0031,46021.0,46017.0,0.06528228]
[1649186919269,0.0031,46021.0,46017.0,0.10898228]
[1649186919874,0.25916819,46021.0,46017.0,0.11985228]
[1649186919973,0.0031,46021.0,46017.0,0.11985228]
[1649186920325,8.99,46018.0,46017.0,0.11985228]
[1649186920528,8.99,46018.0,46017.0,0.06556128]
[1649186920622,8.99,46018.0,46017.0,0.09259277]
[1649186920727,8.99,46018.0,46017.0,0.08172277]
[1649186921591,0.17330918,46018.0,46017.0,0.9834998]
[1649186921687,0.00053457,46020.0,46018.0,1.5]
[1649186921785,0.004,46022.0,46019.0,1.77567]
[1649186921886,0.01,46024.0,46020.0,0.16649333]
[1649186921985,0.01,46024.0,46021.0,0.729945]
[1649186922089,0.0480509,46025.0,46023.0,0.01098352]
[1649186922187,0.0430509,46025.0,46024.0,0.01086]
[1649186922288,0.00021658,46043.0,46025.0,0.6]
[1649186922385,0.00021658,46043.0,46025.0,0.67566]
[1649186922484,0.00021658,46043.0,46025.0,0.81936]
[1649186922584,0.48099797,46039.0,46025.0,0.81936]
[1649186922684,0.28252235,46034.0,46025.0,0.81936]
[1649186922784,0.002,46034.0,46025.0,0.81936]
[1649186922986,0.002,46034.0,46025.0,0.15456]
[1649186923084,0.002,46034.0,46025.0,0.45456]
[1649186923384,0.002,46034.0,46025.0,0.81456]
[1649186923485,0.002,46034.0,46025.0,0.86456]
[1649186923586,0.002,46034.0,46026.0,0.01086]
[1649186923784,0.002,46034.0,46027.0,0.0437]
[1649186923887,0.002,46034.0,46028.0,0.67566]
[1649186923986,0.002,46034.0,46028.0,0.729943]
[1649186924086,0.002,46034.0,46028.0,0.923643]
[1649186924184,0.002,46034.0,46028.0,0.873643]
[1649186924387,0.0001,46034.0,46029.0,0.5]
[1649186924489,0.0001,46034.0,46030.0,0.729945]
[1649186924589,0.0001,46034.0,46030.0,0.108845]
[1649186924690,0.0001,46034.0,46030.0,0.208845]
[1649186924828,0.0001,46034.0,46030.0,0.508845]
[1649186924927,0.0001,46034.0,46031.0,0.30480122]
[1649186925078,0.0001,46034.0,46032.0,0.05456]
[1649186925180,0.0001,46034.0,46032.0,0.01086]
[1649186925280,0.0001,46034.0,46032.0,0.0437]
[1649186925377,0.0001,46034.0,46033.0,0.01086]
[1649186927178,0.0001,46034.0,46033.0,0.05456]
[1649186927484,0.0001,46034.0,46033.0,0.0437]
[1649186928034,0.23568161,46034.0,46033.0,0.0437]
[1649186928231,0.13568161,46034.0,46033.0,0.0437]
[1649186928332,0.00455605,46036.0,46033.0,0.0437]
[1649186928582,0.00455605,46036.0,46034.0,0.03802277]
[1649186928828,0.004,46036.0,46034.0,0.03802277]
[1649186928928,0.52158572,46035.0,46034.0,0.03802277]
[1649186929227,0.002,46035.0,46034.0,0.03802277]
[1649186930078,0.004,46036.0,46034.0,0.03802277]
[1649186930079,0.28829096,46036.0,46034.0,0.03802277]
[1649186930177,0.01,46039.0,46035.0,0.03802277]
[1649186930279,0.01,46039.0,46036.0,0.03802277]
[1649186930429,0.00614989,46037.0,46036.0,0.03802277]
[1649186931081,0.00614989,46037.0,46036.0,0.34888277]
[1649186931180,0.00559385,46037.0,46036.0,0.31086]
[1649186931279,0.00359385,46037.0,46036.0,0.31086]
[1649186931383,0.00359385,46037.0,46036.0,0.97566]
[1649186931479,0.00359385,46037.0,46036.0,1.01936]
[1649186931782,0.01053722,46039.0,46036.0,1.11936]
[1649186931934,0.01053722,46039.0,46037.0,0.6648]
[1649186932032,0.01053722,46039.0,46038.0,0.97566]
[1649186932129,0.01053722,46039.0,46038.0,1.01936]
[1649186932230,0.01053722,46039.0,46038.0,1.11936]
[1649186932364,0.00021658,46043.0,46041.0,0.21162343]
[1649186932467,0.00021658,46043.0,46042.0,0.365121]
[1649186932565,0.00021658,46043.0,46042.0,0.408821]
[1649186933165,0.00786521,46054.0,46042.0,0.44684377]
[1649186933265,0.00786521,46054.0,46042.0,0.408821]
[1649186933366,0.00786521,46054.0,46043.0,0.05]
[1649186933466,0.00786521,46054.0,46051.0,0.29286862]
[1649186933566,0.00786521,46054.0,46052.0,0.108525]
[1649186934568,0.00786521,46054.0,46052.0,0.054262]
[1649186934670,0.00786521,46054.0,46048.0,0.02471142]
[1649186934775,0.01872521,46054.0,46033.0,0.2488]
[1649186934869,0.01872521,46054.0,46041.0,0.0437]
[1649186934972,0.332459,46053.0,46046.0,0.00051737]
[1649186935070,0.2,46050.0,46046.0,0.00051737]
[1649186935171,0.01086,46049.0,46046.0,0.00051737]
[1649186935317,0.37321842,46048.0,46046.0,0.00051737]
[1649186935518,0.23922792,46047.0,46046.0,0.00051737]
[1649186935720,0.64992786,46047.0,46046.0,0.00051737]
[1649186936074,0.6514879,46047.0,46033.0,0.3]
[1649186936172,0.6514879,46047.0,46032.0,0.30388572]
[1649186936173,0.17757,46038.0,46032.0,0.30388572]
[1649186936272,0.17757,46038.0,46037.0,0.03802277]
[1649186937172,0.00043316,46043.0,46037.0,0.03802277]
[1649186937271,0.00043316,46043.0,46042.0,0.01098579]
[1649186937875,0.32203216,46043.0,46035.0,0.00051741]
[1649186937979,0.521599,46041.0,46040.0,0.02704277]
[1649186938080,0.532459,46041.0,46035.0,0.00051741]
[1649186938174,0.2,46037.0,46035.0,0.00051741]
[1649186938273,0.2,46037.0,46020.0,0.16649333]
[1649186938274,1.6,46035.0,46021.0,0.29551741]
[1649186938374,1.6,46035.0,46020.0,0.16649333]
[1649186938375,0.30197268,46034.0,46020.0,0.16649333]
[1649186938928,0.26141258,46028.0,46020.0,0.16649333]
[1649186939327,0.05431493,46032.0,46020.0,0.44032323]
[1649186939428,0.0437,46037.0,46020.0,0.44032323]
[1649186939626,0.3,46041.0,46020.0,0.44032323]
[1649186939726,0.05456,46040.0,46020.0,0.44032323]
[1649186939875,0.04956,46040.0,46020.0,0.44032323]
[1649186939971,0.15317397,46031.0,46020.0,0.44032323]
[1649186940273,0.15317397,46031.0,46020.0,0.16649333]
[1649186940372,0.40980029,46034.0,46020.0,0.16649333]
[1649186940976,0.054316,46036.0,46020.0,0.16649333]
[1649186941079,0.321599,46035.0,46020.0,0.16649333]
[1649186941178,0.25715129,46026.0,46020.0,0.16649333]
[1649186941281,0.25715129,46026.0,46025.0,0.02704277]
[1649186941478,0.10863581,46036.0,46020.0,0.16649333]
[1649186941583,0.24290608,46029.0,46021.0,0.3]
[1649186941729,0.24290608,46029.0,46020.0,0.16649333]
[1649186942180,0.24290608,46029.0,46022.0,0.00031861]
[1649186943237,0.24290608,46029.0,46020.0,0.16649333]
[1649186943386,0.24290608,46029.0,46023.0,0.00055575]
[1649186944413,0.21468699,46025.0,46020.0,0.16649333]
[1649186944613,0.58122858,46033.0,46032.0,0.01616453]
[1649186944715,0.64640958,46033.0,46032.0,4.53e-06]
[1649186944814,0.91904259,46033.0,46032.0,4.53e-06]
[1649186945115,0.321599,46032.0,46024.0,1.028e-05]
[1649186945216,0.2,46030.0,46024.0,1.028e-05]
[1649186945314,0.321599,46029.0,46024.0,1.028e-05]
[1649186945465,0.0437,46028.0,46024.0,1.028e-05]
[1649186945569,0.332459,46027.0,46020.0,0.16649333]
[1649186945670,0.2,46026.0,46020.0,3.33e-06]
[1649186945768,0.386797,46025.0,46020.0,3.33e-06]
[1649186945869,0.2,46021.0,46020.0,3.33e-06]
[1649186945973,0.617859,46021.0,46020.0,3.33e-06]
[1649186946067,0.628719,46021.0,46020.0,3.33e-06]
[1649186946169,0.872419,46021.0,46020.0,3.33e-06]
[1649186946471,3.06625702,46021.0,46020.0,3.33e-06]
[1649186946773,4.35699802,46021.0,46020.0,3.33e-06]
[1649186946871,4.5342073,46021.0,45992.0,0.31087]
[1649186946975,0.2,46004.0,45991.0,0.01]
[1649186947129,0.22589419,45998.0,45991.0,0.01]
[1649186947331,0.22589419,45998.0,45996.0,0.02704277]
[1649186947431,0.22589419,45998.0,45997.0,0.02704277]
[1649186947631,0.22589419,45998.0,45991.0,0.01]
[1649186947930,0.18890818,45992.0,45991.0,0.01]
[1649186948483,0.60420479,45992.0,45991.0,0.01]
[1649186948789,0.92580379,45992.0,45983.0,0.08978904]
[1649186948885,0.27248954,45984.0,45983.0,0.08978904]
[1649186948985,0.27248954,45984.0,45976.0,0.01]
[1649186948986,1.6,45983.0,45976.0,0.01]
[1649186949189,0.321599,45982.0,45976.0,0.01]